Cogmind - Beta 16 @@@ ROGUE MODE // 2025.10.30 @ 03:33:36 Player: Demo Result: Destroyed by 4O-04J(j) with Overtuned Pulse Rifle Performance ------------- Evolutions (0) 0 Regions Visited (4) 800 Robots Destroyed (1) 5 Value Destroyed (7) 7 Prototype IDs (16) 320 Alien Tech Used (0) 0 Bonus (800) 800 TOTAL SCORE: 1932 Bonus ------- Registered with UFD 300 Met Optimus in HQ 500 Cogmind --------- Core Integrity 0/250 Matter 300/300 Energy 98/100 System Corruption 0% Temperature Cool (24) Movement Core (50) Location -9/Scraptown Parts ------- > --- POWER (1) -------- (None) > --- PROPULSION (2) --- (None) > --- UTILITY (2) ------ Expert System (Blank) A0-MCA's Component Scanner > --- WEAPON (2) ------- (None) > --- INVENTORY (5) ---- Ballwheel Tech Extrapolator Peak State ------------ > --- POWER ------------ MA-1KR's Cyclogen > --- PROPULSION ------- Improved Hover Unit Improved Hover Unit > --- UTILITY ---------- Expert System A0-MCA's Component Scanner > --- WEAPON ----------- DM-GVY's Chainsaw > --- INVENTORY -------- Ballwheel Tech Extrapolator [Rating: 39] Favorites ----------- Power MA-1KR's Cyclogen Reactor MA-1KR's Cyclogen Propulsion Light Treads Treads Light Treads Hover Unit Improved Hover Unit Utility Machine Analyzer Device Subdweller Optics Processor Machine Analyzer Weapon Mining Claw Energy Gun Small Laser Ballistic Gun Light Assault Rifle Special Weapon CPS Tube Slashing Weapon Mining Claw Build | -11 -10 -10 -9 -9 ------- Run | Yrd Mat Sub Rec Scr Slots Evolved . | . . . . . Power . | . . . . . Propulsion . | . . . . . Utility . | . . . . . Weapon . | . . . . . Parts Attached 20 | 2 2 3 . 13 Power 1 | . . . . 1 Engine . | . . . . . Core . | . . . . . Reactor 1 | . . . . 1 Propulsion 6 | 2 . . . 4 Treads 4 | 2 . . . 2 Leg . | . . . . . Wheel . | . . . . . Hover 2 | . . . . 2 Flight . | . . . . . Utility 4 | . . 2 . 2 Device 1 | . . 1 . . Storage . | . . . . . Processor 3 | . . 1 . 2 Hackware . | . . . . . Protection . | . . . . . Artifact . | . . . . . Weapon 9 | . 2 1 . 6 Energy Gun 1 | . 1 . . . Energy Cannon . | . . . . . Ballistic Gun 5 | . 1 1 . 3 Ballistic Cannon . | . . . . . Launcher . | . . . . . Special Weapon 1 | . . . . 1 Impact Weapon . | . . . . . Slashing Weapon 2 | . . . . 2 Piercing Weapon . | . . . . . Special Melee Weapon . | . . . . . Unidentified Prototypes . | . . . . . Parts Lost 5 | . . 1 . 4 Power . | . . . . . Propulsion 2 | . . . . 2 Utility . | . . . . . Weapon 3 | . . 1 . 2 Highest Loss Streak 3 | . . 1 . 3 To Critical Strikes . | . . . . . Average Backups 3 | 2 3 4 5 3 Power . | . 1 . . . Propulsion 1 | . . 1 2 . Utility . | . 1 1 1 . Weapon 1 | 1 1 1 2 1 Tool/Special . | . . . . . Unused Backups 9 | . . 2 . 7 Power 1 | . . 1 . . Propulsion 3 | . . . . 3 Utility 3 | . . . . 3 Weapon 2 | . . 1 . 1 Tool/Special . | . . . . . Average Slot Usage (%) 64 | . 47 66 57 66 Treads 20 | . 28 28 28 16 Hover 7 | . . . . 11 Device 5 | . . 6 14 4 Processor 16 | . . 12 14 20 Energy Gun 2 | . 9 8 . . Ballistic Gun 4 | . 9 10 . 2 Special Weapon 3 | . . . . 4 Slashing Weapon 3 | . . . . 5 Peak Build Rating 39 | 2 4 9 7 39 Average Rating 10 | 1 3 7 7 12 On Entrance 4 | . 2 4 7 7 Avg Prop Armor Cover (%) 36 | 41 33 31 39 37 Naked Turns . | . . . . . Heaviest Build 24 | . 2 4 2 24 Greatest Support 14 | 3 3 3 3 14 Greatest Overweight (x) 3 | . . 1 . 3 Average Overweight (x) . | . . . . . Largest Inventory Capacity 5 | 5 5 5 5 5 Average Capacity 5 | 5 5 5 5 5 Most Carried 5 | 5 5 5 5 5 Average Carried 3 | 2 3 4 5 3 Final Capacity 5 | 5 5 5 5 5 Final Carried 5 | 5 3 5 5 5 Class Distribution -------------------- 78% | Mutant 21% | Derelict-Mutant Dominant Class ---------------- Mutant | -10/Materials Mutant | -10/Subcaves Mutant | -9/Recycling Mutant | -9/Scraptown Resources | -11 -10 -10 -9 -9 ----------- Run | Yrd Mat Sub Rec Scr Matter Collected 519 | 168 30 71 100 150 Remotely . | . . . . . Salvage Created 30 | . 30 . . . Parts 5 | . 5 . . . Haulers Intercepted . | . . . . . Recyclers Shooed . | . . . . . Parts Field Recycled . | . . . . . Retrieved Matter . | . . . . . Parts Self-Destructed 2 | . . 2 . . Prevented . | . . . . . Parts Restored . | . . . . . Kills | -11 -10 -10 -9 -9 ------- Run | Yrd Mat Sub Rec Scr Combat Hostiles Destroyed . | . . . . . Classes Destroyed 1 | . 1 . . . Tunneler 1 | . 1 . . . Best Kill Streak 1 | . 1 . . . Combat Bots Only . | . . . . . Max Kills in Single Turn 1 | . 1 . . . Gunslinging . | . . . . . Exploded . | . . . . . Melee . | . . . . . Uniques/NPCs Destroyed . | . . . . . Combat | -11 -10 -10 -9 -9 -------- Run | Yrd Mat Sub Rec Scr Hostile Shots Fired 78 | . 10 35 . 33 Missed 35 | . 4 22 . 9 Hits 43 | . 6 13 . 24 Melee 3 | . . . . 3 Projectile 40 | . 6 13 . 21 Critical Strikes 2 | . . 1 . 1 Damage Taken 756 | . 79 235 . 442 Core 266 | . 22 9 . 235 Absorbed by Shields . | . . . . . Core Remaining (%) 100 | 100 . . . . Volleys Fired 39 | . 9 30 . . Largest 2 | . 2 1 . . Hottest 60 | . 60 25 . . Shots Fired 48 | . 18 30 . . Gun 48 | . 18 30 . . Cannon . | . . . . . Launcher . | . . . . . Special . | . . . . . Kinetic 39 | . 9 30 . . Thermal 9 | . 9 . . . Explosive . | . . . . . Electromagnetic . | . . . . . Robot Hit Streak 7 | . 7 . . . Robot Miss Streak 2 | . 2 . . . Penetration Max . | . . . . . Secondary Targets . | . . . . . Shots Hit Robots 10 | . 10 . . . Core Hits 3 | . 3 . . . Critical Kills . | . . . . . Critical Parts Destroyed . | . . . . . Critical Strikes . | . . . . . Melee Attacks 5 | . . . . 5 Impact . | . . . . . Slashing 5 | . . . . 5 Piercing . | . . . . . Sneak Attacks . | . . . . . Combat Hostiles . | . . . . . Follow-up Attacks . | . . . . . Damage Inflicted 80 | . 80 . . . Guns 80 | . 80 . . . Cannons . | . . . . . Explosions . | . . . . . Melee . | . . . . . Ramming . | . . . . . Kinetic 24 | . 24 . . . Thermal 56 | . 56 . . . Explosive . | . . . . . Electromagnetic . | . . . . . Impact . | . . . . . Slashing . | . . . . . Piercing . | . . . . . Highest Corruption . | . . . . . Average Corruption . | . . . . . Corruption Purged . | . . . . . Corruption Blocked . | . . . . . Overload Shots . | . . . . . Overflow Damage . | . . . . . Projectiles . | . . . . . Explosions . | . . . . . Melee . | . . . . . Knockbacks . | . . . . . Impact . | . . . . . Kinetic . | . . . . . Secondary . | . . . . . Self-Inflicted Damage . | . . . . . Shots . | . . . . . Rammed . | . . . . . Targets Rammed . | . . . . . Kicked . | . . . . . Crushed . | . . . . . Highest Temperature 20 | . 20 . . 18 Average Temperature 9 | . 8 . . 18 Received Heat Transfer 295 | . 45 57 . 193 Siege Activations . | . . . . . Martial Activations . | . . . . . Shielding Activations . | . . . . . Robots Disrupted . | . . . . . Combat Hostiles . | . . . . . Robots Corrupted . | . . . . . Combat Hostiles . | . . . . . Parts Fried . | . . . . . Impact Corruptions . | . . . . . Robots Melted . | . . . . . Combat Hostiles . | . . . . . Parts Melted . | . . . . . Heat Transferred 125 | . 125 . . . Parts Sabotaged . | . . . . . Parts Stolen . | . . . . . Parts Stripped . | . . . . . Power Chain Reactions . | . . . . . Alert | -11 -10 -10 -9 -9 ------- Run | Yrd Mat Sub Rec Scr Maximum Alert Level . | . . . . . Low Security (%) 100 | 100 100 . 100 . Level 1 . | . . . . . Level 2 . | . . . . . Level 3 . | . . . . . Level 4 . | . . . . . Level 5 . | . . . . . High Security . | . . . . . Max Security . | . . . . . Peak Influence 70 | . 5 . 70 . Initial . | . . . . . Average 14 | . . . 33 . Influence Increases 95 | . 5 . 90 . Destroy 0b10 Robot/NC 5 | . 5 . . . Select Force Hacks 90 | . . . 90 . Influence Decreases 95 | . 5 . 40 50 Entered New Map 50 | . . . . 50 Time Decay 45 | . 5 . 40 . Squads Dispatched 1 | . 1 . . . Investigation . | . . . . . Extermination . | . . . . . Reinforcement 1 | . 1 . . . Assault . | . . . . . Garrison . | . . . . . Intercept . | . . . . . Searches Triggered . | . . . . . Construction Impeded . | . . . . . Haulers Reinforced . | . . . . . Active Scanning Responses . | . . . . . Cargo Convoy Interrupts . | . . . . . Stealth | -11 -10 -10 -9 -9 --------- Run | Yrd Mat Sub Rec Scr Distress Signals . | . . . . . Communications Jammed . | . . . . . Distress Signals . | . . . . . Times Spotted 29 | . 5 12 . 12 Peak Tracking Total 6 | . 4 6 . 6 Tactical Retreats 3 | . . 3 . . Traps | -11 -10 -10 -9 -9 ------- Run | Yrd Mat Sub Rec Scr Traps Triggered 1 | . . 1 . . Indirectly . | . . . . . Trap Hack Attempts . | . . . . . Triggered . | . . . . . Disarmed . | . . . . . Reprogrammed . | . . . . . Reused . | . . . . . Traps Extracted . | . . . . . Installed . | . . . . . Triggered . | . . . . . Machines | -11 -10 -10 -9 -9 ---------- Run | Yrd Mat Sub Rec Scr Machines Disabled 4 | . . . . 4 Max in Single Turn 1 | . . . . 1 Machines Repaired . | . . . . . Machines Dismantled . | . . . . . Machines Sabotaged . | . . . . . Overloaded Fab Kills . | . . . . . Hacking | -11 -10 -10 -9 -9 --------- Run | Yrd Mat Sub Rec Scr Machines Accessed 6 | . . 1 3 2 Terminals . | . . . . . Fabricators . | . . . . . Repair Stations . | . . . . . Recycling Units 3 | . . . 3 . Scanalyzers . | . . . . . Garrison Access . | . . . . . Total Hacks 15 | . . 5 3 7 Successful 15 | . . 5 3 7 Failed . | . . . . . Catastrophic . | . . . . . Database Lockouts . | . . . . . Manual 3 | . . . 3 . Terminals . | . . . . . Fabricators . | . . . . . Repair Stations . | . . . . . Recycling Units 3 | . . . 3 . Scanalyzers . | . . . . . Garrison Access . | . . . . . Terminal Hacks 12 | . . 5 . 7 Record 5 | . . 5 . . Robot Analysis 6 | . . . . 6 Proto ID Catalog 1 | . . . . 1 Fabricator Hacks . | . . . . . Repair Station Hacks . | . . . . . Recycling Unit Hacks . | . . . . . Scanalyzer . | . . . . . Garrison Access Hacks . | . . . . . Unauthorized Hacks 3 | . . . 3 . Terminals . | . . . . . Fabricators . | . . . . . Repair Stations . | . . . . . Recycling Units 3 | . . . 3 . Tunnel 3 | . . . 3 . Scanalyzers . | . . . . . Garrison Access . | . . . . . Data Cores Recovered . | . . . . . Used . | . . . . . Hacking Detections . | . . . . . Full Trace Events . | . . . . . Feedback Events . | . . . . . Feedback Blocked . | . . . . . Robot Schematics Acquired . | . . . . . Robots Built . | . . . . . Authchips . | . . . . . Time . | . . . . . Total Robot Build Rating . | . . . . . Part Schematics Acquired . | . . . . . Parts Built . | . . . . . Authchips . | . . . . . Time . | . . . . . Total Part Build Rating . | . . . . . Part Studies Acquired . | . . . . . Parts Repaired . | . . . . . Time . | . . . . . Parts Recycled . | . . . . . Recycled Matter . | . . . . . Retrieved Matter . | . . . . . Retrieved Components . | . . . . . Parts Scanalyzed . | . . . . . Part Schematics Acquired . | . . . . . Parts Damaged . | . . . . . Bothacking | -11 -10 -10 -9 -9 ------------ Run | Yrd Mat Sub Rec Scr Used RIF Installer . | . . . . . Robots Hacked . | . . . . . Non-combat . | . . . . . Combat . | . . . . . Robot Hacks Applied . | . . . . . Relay Couplers Released . | . . . . . Fabnet Peak Effective % . | . . . . . Robots Rewired . | . . . . . Allies Hacked . | . . . . . Hacks Repelled . | . . . . . Allies | -11 -10 -10 -9 -9 -------- Run | Yrd Mat Sub Rec Scr Total Allies . | . . . . . Largest Group . | . . . . . Highest-Rated Group . | . . . . . Highest-Rated Ally . | . . . . . Total Orders . | . . . . . Ally Attacks . | . . . . . Total Damage . | . . . . . Kills . | . . . . . Allies Corrupted . | . . . . . Allies Melted 1 | . . . . 1 Intel | -11 -10 -10 -9 -9 ------- Run | Yrd Mat Sub Rec Scr Active Infowar (turns) 1921 | . . 387 114 1420 Optics 395 | . . 207 114 74 Machine Analysis 1921 | . . 387 114 1420 Robot Analysis Total 6 | . . . . 6 Derelict Logs Recovered 2 | . . . . 2 Drone Launches . | . . . . . Drone Recoveries . | . . . . . Exploration | -11 -10 -10 -9 -9 ------------- Run | Yrd Mat Sub Rec Scr Turns Passed 2155 | 34 109 437 114 1461 Spaces Moved 3126 | 51 163 669 211 2032 Core 2800 | 51 163 669 211 1706 Treads . | . . . . . Legs . | . . . . . Wheels . | . . . . . Hover 326 | . . . . 326 Flight . | . . . . . Fastest Speed 50 | 50 50 50 50 50 Average Speed 51 | 50 50 52 50 51 Slowest Speed 240 | 50 50 100 50 240 Overloaded Moves . | . . . . . Propulsion Burnouts . | . . . . . Robots Hopped . | . . . . . Potential Cave-ins . | . . . . . Cave-ins Triggered . | . . . . . Exploration Rate (%) 43 | 3 23 49 53 91 Regions Visited 4 Branch Regions 3 Pre-discovered Areas 4 | . . . 3 1 Known Exits Taken . | . . . . . Unknown Exits Taken 4 | 1 1 1 1 . Scrap Searched 12 | . . . . 12 Spaces Dug 1 | . . 1 . . Terrain Destroyed 1 | . . 1 . . Melee . | . . . . . Projectile 1 | . . 1 . . AOE . | . . . . . Terrain Rammed . | . . . . . Walls Destroyed . | . . . . . Machines Disabled . | . . . . . Actions | -11 -10 -10 -9 -9 --------- Run | Yrd Mat Sub Rec Scr Total 3619 | 57 173 729 218 2442 Wait 393 | . . 21 8 364 Move 3122 | 50 162 668 210 2032 Hop . | . . . . . Pick Up 16 | 5 . 3 . 8 Fast Attach 13 | 2 . 3 . 8 Attach 6 | . 2 . . 4 Detach 1 | . . 1 . . Swap 3 | . . . . 3 Drop 21 | . . 3 . 18 Fire 39 | . 9 30 . . Melee 5 | . . . . 5 Ram . | . . . . . Kick . | . . . . . Crush . | . . . . . Escape Stasis . | . . . . . Rewire . | . . . . . Trap . | . . . . . Miscellaneous . | . . . . . Route ------- -11/Scrapyard -10/Materials -10/Subcaves -9/Recycling -9/Scraptown (discovered 2 exits: [*Fac x2]) History --------- Turn | Location | Event 3 | -11/Scrapyard | Discovered new exit (range 16) 35 | -11/Scrapyard | Entered Materials 132 | -10/Materials | Discovered new exit (range 7) 144 | -10/Materials | Entered Subcaves 145 | -10/Subcaves | Approached by a straggling Scientist 209 | -10/Subcaves | Shifting Twisted Machinery released Sub. Monowheel 211 | -10/Subcaves | Shifting Twisted Machinery released Sub. Monowheel 298 | -10/Subcaves | Disturbed a concealed Subdweller 307 | -10/Subcaves | Build established: Mutant 322 | -10/Subcaves | Visited Clippyterm 323 | -10/Subcaves | Learned Factory fabricator intel 323 | -10/Subcaves | Learned Research security intel 427 | -10/Subcaves | Shifting Twisted Machinery released Battle Rifle 429 | -10/Subcaves | Shifting Twisted Machinery released Battle Rifle 577 | -10/Subcaves | Discovered new exit (range 10) 581 | -10/Subcaves | Entered Recycling 682 | -9/Recycling | Scanned before Scraplab entrance 690 | -9/Recycling | Entered Scraplab 694 | -9/Recycling | Discovered new exit (range 2) 695 | -9/Recycling | Entered Scraptown 731 | -9/Scraptown | Visited UFD Registry 731 | -9/Scraptown | Registered with UFD as "Macemech" 882 | -9/Scraptown | Scanned Subdweller tech in exchange for log data 884 | -9/Scraptown | Learned Research terminal intel 884 | -9/Scraptown | Learned Factory emergency access door positions 889 | -9/Scraptown | Discovered new exit (range 13) 902 | -9/Scraptown | Guru changed UFD alias to "Hellhacker" 941 | -9/Scraptown | Visited Supply Room 959 | -9/Scraptown | Visited Awakened 1176 | -9/Scraptown | Visited Bundlers 1218 | -9/Scraptown | Visited Modified Component R&D 1235 | -9/Scraptown | Visited LU-1G1's Boring Crew 1245 | -9/Scraptown | Visited DA-N13 Charitable Foundation 1250 | -9/Scraptown | Found DCF Scrap (28 items) 1292 | -9/Scraptown | Discovered new exit (range 5) 1312 | -9/Scraptown | Visited Science Guys 1325 | -9/Scraptown | Visited A0-MCA Data Center 1338 | -9/Scraptown | Visited Analyses Database 1409 | -9/Scraptown | Visited Research Penetration Think Tank 1419 | -9/Scraptown | Visited Scrapoid Pod Storage 1428 | -9/Scraptown | Visited Curators Association 1512 | -9/Scraptown | Given an A rating by A0-MCA 1514 | -9/Scraptown | Found A0-MCA's Component Scanner 1651 | -9/Scraptown | Met Optimus 1651 | -9/Scraptown | Accepted into 0bPrime 1908 | -9/Scraptown | Build established: Derelict-Mutant 2051 | -9/Scraptown | Civil war broke out across Scraptown 2055 | -9/Scraptown | Found DM-GVY's Chainsaw 2062 | -9/Scraptown | Found MA-1KR's Cyclogen 2079 | -9/Scraptown | Found Ballwheel 2116 | -9/Scraptown | Found Expert System 2151 | -9/Scraptown | Core integrity fell below 50% 2156 | -9/Scraptown | Core integrity fell below 20% 2156 | -9/Scraptown | Destroyed by 4O-04J(j) with Overtuned Pulse Rifle Last Messages --------------- 02132_ Dropped MA-1KR's Cyclogen. 02133_ Dropped Barrage Gun. 02133_ Barrage Gun crushed and broken. 02134_ Acquired Tech Extrapolator. 02136_ Acquired MA-1KR's Cyclogen. 02137_ Bolt penetrates Wall. 02138_ Acquired 20 matter. 02139_ RJ-1RZ(x) destroyed. 02146_ Penetrated by Bolt. 02146_ Imp. Hover Unit destroyed. 02146_ Penetrated by Bolt. 02148_ Imp. Hover Unit destroyed. 02149_ 5W-Q24(b): "Stop this nonsense!" 02149_ Bolt penetrates Wall. 02149_ Dropped MA-1KR's Cyclogen. 02151_ Penetrated by Bolt. 02155_ DM-GVY's Chainsaw destroyed. 02155_ Penetrated by Bolt. 02155_ 4E-4WW(j) suffers critical hit (Destroy). 02155_ 4E-4WW(j) destroyed. Map ----- +----------------------------------------------------+ | | | | | | | | | | | | | | | | | | | ?????????????????????????????????????????????????? | | ?????????????????????????????????????????????????? | | ?????????????????????????????????????????????????? | | ?????????????????????????????????????????????????? | | ?????????????????????????????????????????????????? | | ?????????????????????????????????????????????????? | | ?????????????????????????????????????????????????? | | ?????????????????????????????????????????????????? | | ?????????????????????????????????????????????????? | | ?????????????????????????????????????????????????? | | ?????????????????????????????????????????????????? | | ????????????????????????#####????????????????????? | | ????????????????????????#"""#????????????????????? | | ############???####?????#" "#????????????????????? | | "##""|##"""#??## ##????#!j #????????????????????? | | !##""|## !"#### *######b*[##???????????????????? | | [%*!%= ![h [%!j@!! #???????????????????? | | = !=* *=%* x=!!=%==#???????????????????? | | ############"## =!!###########???????????????????? | | ??????????????##%!##?????????????????????????????? | | ???????????????#[!#############??????????????????? | | ???????????????# #"""""""""""#??????????????????? | | ???????????????# #""""" X """#??????????????????? | | ???????????????#!!#""" """"#??????????????????? | | ???????????????#!/#" "!""#??????????????????? | | ????##########?#![#""" """"#??????????????????? | | ????#***## #?#*%#"""" ""#??????????????????? | | ##??#=!/##! |#?#= #"" #??????????????????? | | #??#*%]=] %!#?#!!#"" "" "&#??????????????????? | | #??#![!]=[ /#?#% #"" "" "&#??????????????????? | | # ##!!=**= #?#=%# "#??????????????????? | | ##=! *== #?#=!#" #??????????????????? | | ########## ###?#%=## ##########??????????????????? | | ########## #####==## #############???????????????? | | """"""=" " """""%![" "## """""""""???????????????? | | !%%=%* = !=*! ## "" """"""#??????????????? | | ![![!! !%=[!= ## "" """"""#??????????????? | | * =!!!% "## """"#??????????????? | | [%! !%[%=[[ [## """"#??????????????? | | = *!=!= !%= " """"#??????????????? | | """" """ "" " %=%==%"## """""""""#??????????????? | +----------------------------------------------------+ Best States ------------- Heat Dissipation 25 Energy Generation 7 Energy Capacity 2600 Matter Stores 300 Matter Capacity 300 Sight Range 21 Terrain Scan Density 10 Evasion (%) 53 Recoil Reduction 2 Item Schematics ----------------- None Robot Schematics ------------------ None Fabricated ------------ Nothing Repaired ---------- Nothing Studied --------- None Alien Tech Used ----------------- None Achievements -------------- Longdome?! Challenges ------------ None Game ------ Seed TechNuclearRedistributor Manual? 0 Play Time 00:18:48 Cumulative 338.3 hours Start 2025.10.30 @ 03:14:08 End 2025.10.30 @ 03:33:36 Sessions 1 Manual Loads 0 Difficulty Rogue Special Mode None Game No. 295 Rogue 295 Adventurer 0 Explorer 0 Win Type - Total 2 Types 1/1/0/0/0/0/0/0/0/0 Lore% 81 Gallery% 80 Achievement% 53 Wizard Run 0 Options --------- Layout 1 ASCII 0 Keyboard 0 Movement Numpad Keybinds 0 Fullscreen 1 Font 24/Smallcaps Map View 50x35 Zoom Use 0% Tactical HUD 1 Map Filters NONE Filters NONE Steam 1 RUN: ac855fcc-f3bb-464f-a261-99fdfb197638